bitfinex-derivatives/quotes_BTCF0:USTF0_20250510
["timestamp","ask_amount","ask_price","bid_price","bid_amount"]
[1746917099997,0.72690073,103730.0,103720.0,0.16458]
[1746917101800,0.6171793,103730.0,103720.0,0.16458]
[1746917102003,0.69530073,103730.0,103720.0,0.16458]
[1746917102403,0.6171793,103730.0,103720.0,0.16458]
[1746917102602,0.72580073,103730.0,103720.0,0.16458]
[1746917104506,0.72580073,103730.0,103720.0,0.13288]
[1746917105097,0.96992216,103730.0,103720.0,0.10168]
[1746917105301,0.96992216,103730.0,103710.0,0.04669393]
[1746917105302,0.1927979,103720.0,103710.0,0.04669393]
[1746917105497,0.77134076,103720.0,103710.0,0.07919393]
[1746917105697,0.80244076,103720.0,103710.0,0.05081393]
[1746917106103,0.96844076,103720.0,103710.0,0.05081393]
[1746917106505,0.96944076,103720.0,103710.0,0.05381393]
[1746917107411,0.97044076,103720.0,103710.0,0.05381393]
[1746917107732,0.93329598,103720.0,103710.0,0.05381393]
[1746917108199,0.93329598,103720.0,103710.0,0.02131393]
[1746917109407,1.05239406,103720.0,103710.0,4e-08]
[1746917109913,0.93329598,103720.0,103710.0,4e-08]
[1746917110210,1.05239406,103720.0,103710.0,4e-08]
[1746917110614,1.30303406,103720.0,103710.0,4e-08]
[1746917111007,0.1928164,103710.0,103700.0,0.10865684]
[1746917111207,1.02041256,103710.0,103700.0,0.07805684]
[1746917111417,1.02041256,103710.0,103700.0,0.00651]
[1746917111712,1.02041256,103710.0,103700.0,0.02111308]
[1746917112314,1.02141256,103710.0,103700.0,0.05381308]
[1746917113012,1.02141256,103710.0,103700.0,0.02111308]
[1746917113503,1.02241256,103710.0,103700.0,0.02111308]
[1746917115013,1.02241256,103710.0,103700.0,0.05381308]
[1746917115222,1.02241256,103710.0,103700.0,0.05382048]
[1746917115419,0.7842164,103710.0,103700.0,0.05382048]
[1746917115609,1.02241256,103710.0,103700.0,0.05382048]
[1746917116414,0.90331448,103710.0,103700.0,0.05382048]
[1746917116717,1.02241256,103710.0,103700.0,0.05382048]
[1746917117502,0.7842164,103710.0,103700.0,0.05382048]
[1746917117707,1.02241256,103710.0,103700.0,0.05382048]
[1746917118322,0.88931256,103710.0,103700.0,0.05382048]
[1746917119311,0.6511164,103710.0,103700.0,0.05382048]
[1746917119509,0.88931256,103710.0,103700.0,0.05382048]
[1746917120616,0.6182164,103710.0,103700.0,0.08662048]
[1746917120920,0.1948164,103710.0,103700.0,0.43818284]
[1746917121121,0.1948164,103710.0,103700.0,0.60418284]
[1746917121418,0.1948164,103710.0,103700.0,0.58957236]
[1746917122814,0.1948164,103710.0,103700.0,0.95037236]
[1746917123806,0.1948164,103710.0,103700.0,0.75753736]
[1746917125219,0.1948164,103710.0,103700.0,0.75102736]
[1746917126019,0.1948164,103710.0,103700.0,0.94386236]
[1746917126717,0.1948164,103710.0,103700.0,0.75102736]
[1746917127822,0.5248164,103710.0,103700.0,0.94386236]
[1746917128621,0.5248164,103710.0,103700.0,0.58306236]
[1746917129823,0.5248164,103710.0,103700.0,0.66119282]
[1746917130022,0.5248164,103710.0,103700.0,0.58306236]
[1746917131021,0.5248164,103710.0,103700.0,0.94386236]
[1746917132521,0.5248164,103710.0,103700.0,1.02199282]
[1746917132723,0.5248164,103710.0,103700.0,0.94386236]
[1746917132917,0.5248164,103710.0,103700.0,1.02199282]
[1746917134021,0.5248164,103710.0,103700.0,0.94386236]
[1746917134224,0.5248164,103710.0,103700.0,1.10012328]
[1746917135522,0.5248164,103710.0,103700.0,0.94386236]
[1746917135727,0.2648164,103710.0,103700.0,1.06290095]
[1746917136024,0.2648164,103710.0,103700.0,0.94386236]
[1746917136218,0.2648164,103710.0,103700.0,1.34290095]
[1746917136219,0.072,103710.0,103700.0,1.34290095]
[1746917136422,0.1948164,103710.0,103700.0,1.34290095]
[1746917137319,0.1948164,103710.0,103700.0,1.22386236]
[1746917137320,0.4648164,103710.0,103700.0,1.22386236]
[1746917137519,0.4648164,103710.0,103700.0,1.02386236]
[1746917137713,0.58385499,103710.0,103700.0,0.83102736]
[1746917137923,0.4648164,103710.0,103700.0,0.83102736]
[1746917138121,1.00615499,103710.0,103700.0,0.47022736]
[1746917138420,1.00615499,103710.0,103700.0,0.61523624]
[1746917138727,1.03835499,103710.0,103700.0,0.48650888]
[1746917139319,1.15739358,103710.0,103700.0,0.32050888]
[1746917139529,1.15739358,103710.0,103700.0,0.17770888]
[1746917139720,0.9193164,103710.0,103700.0,0.17770888]
[1746917140028,1.03835499,103710.0,103700.0,0.17770888]
[1746917140733,0.5263164,103710.0,103700.0,0.20770888]
[1746917140920,0.8871164,103710.0,103700.0,0.094]
[1746917141119,0.8871164,103710.0,103700.0,0.26]
[1746917141316,1.00615499,103710.0,103700.0,0.26]
[1746917141523,0.8871164,103710.0,103700.0,0.26]
[1746917142115,0.5263164,103710.0,103700.0,0.094]
[1746917142322,0.8871164,103710.0,103700.0,0.094]
[1746917142823,0.5263164,103710.0,103700.0,0.094]
[1746917143021,1.00615499,103710.0,103700.0,0.094]
[1746917143422,1.00615499,103710.0,103700.0,0.1256]
[1746917144332,1.03705499,103710.0,103700.0,0.1256]
[1746917144724,0.9180164,103710.0,103700.0,0.1256]
[1746917148136,0.9180164,103710.0,103700.0,0.0943]
[1746917148725,1.03705499,103710.0,103700.0,0.0643]
[1746917149132,0.8871164,103710.0,103700.0,0.423135]
[1746917149336,0.1948164,103710.0,103700.0,1.66592895]
[1746917149535,0.1948164,103710.0,103700.0,1.87592895]
[1746917149837,0.1948164,103710.0,103700.0,1.66592895]
[1746917150334,0.1948164,103710.0,103700.0,1.41592895]
[1746917151433,0.1948164,103710.0,103700.0,1.56093783]
[1746917151822,0.1948164,103710.0,103700.0,1.44189924]
[1746917152027,0.1948164,103710.0,103700.0,1.56093783]
[1746917152737,0.1948164,103710.0,103700.0,1.44189924]
[1746917152927,0.1948164,103710.0,103700.0,1.56093783]
[1746917153130,0.1948164,103710.0,103700.0,1.44189924]
[1746917153341,0.43725499,103710.0,103700.0,0.76467124]
[1746917153632,0.74725499,103710.0,103700.0,0.76467124]
[1746917153837,0.6282164,103710.0,103700.0,0.76467124]
[1746917154022,0.6282164,103710.0,103700.0,1.12547124]
[1746917157138,0.6282164,103710.0,103700.0,0.98046236]
[1746917158240,0.5648164,103710.0,103700.0,1.09950095]
[1746917158837,0.6254164,103710.0,103700.0,1.09950095]
[1746917159036,0.5949164,103710.0,103700.0,1.09950095]
[1746917159230,0.1948164,103710.0,103700.0,1.17950095]
[1746917159436,0.1948164,103710.0,103700.0,1.09950095]
[1746917162133,0.2256164,103710.0,103700.0,1.09950095]
[1746917163248,0.2574164,103710.0,103700.0,1.09950095]
[1746917168150,0.1948164,103710.0,103700.0,1.09950095]
[1746917169648,0.002,103710.0,103700.0,1.31950095]
[1746917169835,0.002,103710.0,103700.0,1.41592895]
[1746917170039,0.3059076,103720.0,103710.0,0.1928164]
[1746917170242,0.4859076,103720.0,103710.0,0.82495499]
[1746917170645,0.4859076,103720.0,103710.0,0.92138235]
[1746917171140,0.4879076,103720.0,103710.0,1.08738235]
[1746917172345,0.4889076,103720.0,103710.0,1.08838235]
[1746917172743,0.4889076,103720.0,103710.0,1.08958988]
[1746917173453,0.4889076,103720.0,103710.0,0.97055129]
[1746917173751,0.4889076,103720.0,103710.0,0.9753627]
[1746917174138,0.5195076,103720.0,103710.0,0.9753627]
[1746917174549,0.5195076,103720.0,103710.0,0.97652222]
[1746917177557,0.5195076,103720.0,103710.0,0.94492222]
[1746917177759,0.79854619,103720.0,103710.0,0.72210582]
[1746917177943,0.79854619,103720.0,103710.0,0.88422222]
[1746917178148,0.6795076,103720.0,103710.0,0.71822222]
[1746917178353,0.79854619,103720.0,103710.0,0.71822222]
[1746917178553,0.6795076,103720.0,103710.0,0.71822222]
[1746917178855,0.79854619,103720.0,103710.0,0.62179486]
[1746917179056,0.6795076,103720.0,103710.0,0.62179486]
[1746917179654,0.6795076,103720.0,103710.0,0.42897846]
[1746917179854,0.6795076,103720.0,103710.0,0.62179486]
[1746917180656,0.6795076,103720.0,103710.0,0.6218422]
[1746917180861,1.0403076,103720.0,103710.0,0.0682258]
[1746917181050,1.0403076,103720.0,103710.0,0.0682731]
[1746917181243,1.0403076,103720.0,103710.0,0.2610895]
[1746917181449,1.0403076,103720.0,103710.0,0.2611368]
[1746917181850,0.6795076,103720.0,103710.0,0.2611368]
[1746917182051,1.15934619,103720.0,103710.0,0.2611841]
[1746917182957,0.79854619,103720.0,103710.0,0.2611841]
[1746917183959,0.6795076,103720.0,103710.0,0.2611841]
[1746917184359,0.6795076,103720.0,103710.0,0.2912841]
[1746917185560,0.6795076,103720.0,103710.0,0.6520841]
[1746917185759,0.6795076,103720.0,103710.0,0.65244452]
[1746917186661,0.6795076,103720.0,103710.0,0.68550494]
[1746917187369,0.6795076,103720.0,103710.0,0.68586536]
[1746917187665,0.6795076,103720.0,103710.0,0.78228342]
[1746917187864,0.6795076,103720.0,103710.0,0.7823366]
[1746917188257,0.6795076,103720.0,103710.0,0.4215366]
[1746917188460,0.6795076,103720.0,103710.0,0.7823366]
[1746917189363,1.0403076,103720.0,103710.0,0.4215366]
[1746917189569,1.0403076,103720.0,103710.0,0.3888366]
[1746917191055,1.15934619,103720.0,103710.0,0.06950214]
[1746917192873,1.15934619,103720.0,103710.0,0.00950214]
[1746917193269,1.2063076,103720.0,103710.0,0.00950214]
[1746917193572,1.32534619,103720.0,103710.0,0.00950214]
[1746917193774,1.2063076,103720.0,103710.0,0.00950214]
[1746917193976,1.2063076,103720.0,103710.0,0.00990246]
[1746917194169,1.32534619,103720.0,103710.0,0.00990246]
[1746917194371,1.32534619,103720.0,103710.0,0.01030278]
[1746917194766,1.2063076,103720.0,103710.0,0.01030278]
[1746917195075,1.32534619,103720.0,103710.0,0.0107031]
[1746917195769,1.2063076,103720.0,103710.0,0.0107031]
[1746917195970,1.32534619,103720.0,103710.0,0.0107031]
[1746917196275,1.15934619,103720.0,103710.0,0.0107031]
[1746917198678,1.0403076,103720.0,103710.0,0.0107031]
[1746917198881,1.15934619,103720.0,103710.0,0.0107031]
[1746917199270,1.0403076,103720.0,103710.0,0.0107031]
[1746917199670,1.15934619,103720.0,103710.0,0.0107031]
[1746917199869,1.15934619,103720.0,103710.0,0.04264677]
[1746917200273,1.15934619,103720.0,103710.0,0.04269044]
[1746917200780,1.15934619,103720.0,103710.0,0.0329]
[1746917201078,1.15934619,103720.0,103710.0,0.04272582]
[1746917201670,1.15934619,103720.0,103710.0,0.01082582]
[1746917203884,1.15934619,103720.0,103710.0,0.04152582]
[1746917206685,1.15934619,103720.0,103710.0,0.04188431]
[1746917207080,1.15934619,103720.0,103710.0,0.01118431]
[1746917207480,1.27838478,103720.0,103710.0,0.01154206]
[1746917207884,1.15934619,103720.0,103710.0,0.001]
[1746917208186,1.32534619,103720.0,103710.0,0.01189981]
[1746917208373,1.44438478,103720.0,103710.0,0.01189981]
[1746917208573,1.32534619,103720.0,103710.0,0.01189981]
[1746917209587,1.2063076,103720.0,103710.0,0.01189981]
[1746917209884,1.32534619,103720.0,103710.0,0.01189981]
[1746917212807,1.32534619,103720.0,103710.0,0.04339981]
[1746917213180,1.15934619,103720.0,103710.0,0.04339981]
[1746917213582,1.15934619,103720.0,103710.0,0.01189981]
[1746917214783,1.27838478,103720.0,103710.0,0.01189981]
[1746917215189,1.0403076,103720.0,103710.0,0.01189981]
[1746917215389,1.15934619,103720.0,103710.0,0.01189981]
[1746917217694,1.27838478,103720.0,103710.0,0.01189981]
[1746917217892,1.15934619,103720.0,103710.0,0.01189981]
[1746917219795,1.19663532,103720.0,103710.0,0.01189981]
[1746917220097,1.19663532,103720.0,103710.0,0.04509981]
[1746917221887,1.19663532,103720.0,103710.0,0.06705981]
[1746917224809,1.19663532,103720.0,103710.0,1e-08]
[1746917225298,0.1928164,103710.0,103700.0,0.0319]
[1746917225493,1.15434412,103710.0,103700.0,0.0319]
[1746917227096,0.96152772,103710.0,103690.0,0.07892876]
[1746917227295,0.80436272,103700.0,103690.0,0.07892876]
[1746917227493,1.12436272,103700.0,103690.0,0.09350517]
[1746917228299,1.09396272,103700.0,103690.0,0.09350517]
[1746917228600,1.09496272,103700.0,103690.0,0.09350517]
[1746917229197,0.98599886,103700.0,103690.0,0.09350517]
[1746917230100,0.98599886,103700.0,103690.0,0.25950517]
[1746917230302,1.06416272,103700.0,103690.0,0.29190517]
[1746917230903,0.907835,103700.0,103690.0,0.29190517]
[1746917231099,1.09416272,103700.0,103690.0,0.29190517]
[1746917234801,1.12626272,103700.0,103690.0,0.29190517]
[1746917235602,1.09416272,103700.0,103690.0,0.29190517]
[1746917238196,1.12516272,103700.0,103690.0,0.29190517]
[1746917239101,1.13493284,103700.0,103690.0,0.29190517]
[1746917240306,1.13493284,103700.0,103690.0,0.25890517]
[1746917241207,1.13493284,103700.0,103690.0,0.09290517]
[1746917247912,1.12516272,103700.0,103690.0,0.09290517]
[1746917252007,1.1348351,103700.0,103690.0,0.09290517]
[1746917252418,1.21299896,103700.0,103690.0,0.02890517]
[1746917253008,0.1928536,103690.0,103680.0,0.00395428]
[1746917253312,1.18658132,103690.0,103680.0,0.00395428]
[1746917253710,1.18658132,103690.0,103680.0,0.01814068]
[1746917254108,1.18758132,103690.0,103680.0,0.01814068]
[1746917254615,1.18758132,103690.0,103680.0,0.04844068]
[1746917255116,1.18858132,103690.0,103680.0,0.04844068]
[1746917256520,1.18858132,103690.0,103680.0,0.01814068]
[1746917258707,0.1929095,103660.0,103650.0,0.34422688]
[1746917258913,0.59107336,103660.0,103650.0,0.41502688]
[1746917259221,0.59107336,103660.0,103650.0,0.67747284]
[1746917259520,0.62167336,103660.0,103650.0,0.67747284]
[1746917260019,0.65507336,103660.0,103650.0,0.73997284]
[1746917260220,0.65707336,103660.0,103650.0,0.93290094]
[1746917260621,0.5789095,103660.0,103650.0,0.93290094]
[1746917260822,0.65707336,103660.0,103650.0,0.94257444]
[1746917262019,0.65707336,103660.0,103650.0,1.30337444]
[1746917262321,0.5483095,103660.0,103650.0,0.94257444]
[1746917262522,0.59507336,103660.0,103650.0,0.60375009]
[1746917263018,0.5169095,103660.0,103650.0,0.69608846]
[1746917263222,0.1969095,103660.0,103650.0,1.89336046]
[1746917264213,0.2893322,103680.0,103670.0,0.1928908]
[1746917264414,0.4793322,103680.0,103670.0,0.5836908]
[1746917264619,0.4793322,103680.0,103670.0,0.6796908]
[1746917264818,0.4793322,103680.0,103670.0,0.77616467]
[1746917265211,0.4793322,103680.0,103670.0,0.94216467]
[1746917265412,0.4803322,103680.0,103670.0,0.94216467]
[1746917266322,0.4813322,103680.0,103670.0,0.94416467]
[1746917270025,0.5126322,103680.0,103670.0,0.94416467]
[1746917271122,0.5126322,103680.0,103670.0,1.02232853]
[1746917272425,0.3226322,103680.0,103670.0,1.02232853]
[1746917273026,0.3226322,103680.0,103670.0,0.94416467]
[1746917273228,0.3226322,103680.0,103670.0,1.02232853]
[1746917274833,0.3526322,103680.0,103670.0,1.02232853]
[1746917275427,0.3526322,103680.0,103670.0,0.94416467]
[1746917277820,0.3842322,103680.0,103670.0,1.02232853]
[1746917278019,0.3842322,103680.0,103670.0,0.94416467]
[1746917283132,0.62239606,103680.0,103670.0,0.94416467]
[1746917283723,0.5442322,103680.0,103670.0,0.94416467]
[1746917284530,0.62239606,103680.0,103670.0,0.94416467]
[1746917284726,0.65359606,103680.0,103670.0,0.94416467]
[1746917284925,0.5754322,103680.0,103670.0,0.94416467]
[1746917287326,0.5754322,103680.0,103670.0,0.91396467]
[1746917288244,0.9362322,103680.0,103670.0,0.55316467]
[1746917288529,1.01439606,103680.0,103670.0,0.52006467]
[1746917288835,0.65359606,103680.0,103670.0,0.52006467]
[1746917289036,1.09255992,103680.0,103670.0,0.29447387]
[1746917289228,1.09255992,103680.0,103670.0,0.32136467]
[1746917289536,0.65359606,103680.0,103670.0,0.32136467]
[1746917289735,1.01439606,103680.0,103670.0,0.32136467]
[1746917290135,0.65359606,103680.0,103670.0,0.32136467]
[1746917290332,1.01439606,103680.0,103670.0,0.32136467]
[1746917290523,0.65359606,103680.0,103670.0,0.32136467]
[1746917290723,1.01439606,103680.0,103670.0,0.32136467]
[1746917291121,0.65359606,103680.0,103670.0,0.32136467]
[1746917291528,1.01439606,103680.0,103670.0,0.32136467]
[1746917292036,0.65359606,103680.0,103670.0,0.32136467]
[1746917292338,1.01439606,103680.0,103670.0,0.32136467]
[1746917292535,1.01439606,103680.0,103670.0,0.2248908]
[1746917293736,0.9362322,103680.0,103670.0,0.2248908]
[1746917293938,1.01439606,103680.0,103670.0,0.2248908]
[1746917295038,0.65359606,103680.0,103670.0,0.2248908]
[1746917295230,1.01439606,103680.0,103670.0,0.2248908]
[1746917295735,0.65359606,103680.0,103670.0,0.2248908]
[1746917295932,1.01439606,103680.0,103670.0,0.2248908]
[1746917296131,0.1928908,103670.0,103660.0,0.14500888]
[1746917296338,1.18671852,103670.0,103660.0,0.14500888]
[1746917297139,1.35371852,103670.0,103660.0,0.14500888]
[1746917297844,1.32624077,103670.0,103660.0,0.14500888]
[1746917298546,1.32724077,103670.0,103660.0,0.14500888]
[1746917299046,1.1983908,103670.0,103660.0,0.33791838]
[1746917299244,0.1929095,103660.0,103650.0,0.76220034]
[1746917299444,0.6056095,103660.0,103650.0,0.75100034]
[1746917299638,0.6056095,103660.0,103650.0,0.84746491]
[1746917299837,0.6056095,103660.0,103650.0,0.79923551]
[1746917300240,0.6066095,103660.0,103650.0,0.96523551]
[1746917301950,0.6076095,103660.0,103650.0,0.96523551]
[1746917302852,0.3476095,103660.0,103650.0,1.08446003]
[1746917303046,0.2849095,103660.0,103650.0,1.08446003]
[1746917303444,0.1949095,103660.0,103650.0,1.10446003]
[1746917303749,0.1939095,103660.0,103650.0,1.30734003]
[1746917304053,0.1949095,103660.0,103650.0,1.30734003]
[1746917304553,0.1949095,103660.0,103650.0,1.28734003]
[1746917304847,0.1949095,103660.0,103650.0,1.54734003]
[1746917306154,0.002,103660.0,103650.0,1.64381203]
[1746917307146,0.2893568,103670.0,103660.0,0.1929095]
[1746917307342,0.2129059,103670.0,103660.0,0.94653402]
[1746917307549,0.3525249,103680.0,103670.0,0.1928908]
[1746917307747,0.6825249,103680.0,103670.0,0.6267908]
[1746917308149,0.6825249,103680.0,103670.0,0.7927908]
[1746917308350,0.6825249,103680.0,103670.0,0.88926467]
[1746917309557,0.6835249,103680.0,103670.0,0.88926467]
[1746917310048,0.6845249,103680.0,103670.0,0.88926467]
[1746917312657,0.6845249,103680.0,103670.0,1.09202467]
[1746917314350,0.6845249,103680.0,103670.0,1.12522467]
[1746917317456,0.6845249,103680.0,103670.0,0.92246467]
[1746917319759,0.6845249,103680.0,103670.0,1.00063784]
[1746917320859,0.6845249,103680.0,103670.0,0.92246467]
[1746917321659,0.6845249,103680.0,103670.0,1.00063784]
[1746917322347,0.6845249,103680.0,103670.0,1.12522467]
[1746917324363,0.3952,103680.0,103670.0,1.47339784]
[1746917324549,0.2261722,103680.0,103670.0,1.47339784]
[1746917324956,0.2582722,103680.0,103670.0,1.47339784]
[1746917327462,0.2682722,103680.0,103670.0,1.47339784]
[1746917327960,0.0433,103680.0,103670.0,1.47339784]
[1746917328156,0.002,103680.0,103670.0,1.56985384]
[1746917330461,0.002,103680.0,103670.0,1.71486272]
[1746917330667,0.002,103680.0,103670.0,1.81486272]
[1746917331069,0.002,103680.0,103670.0,1.71486272]
[1746917332767,0.0651,103690.0,103680.0,0.1928722]
[1746917332983,0.3196685,103700.0,103690.0,0.1928536]
[1746917332984,0.3678812,103700.0,103690.0,0.1928536]
[1746917333185,0.7278812,103700.0,103690.0,0.6765536]
[1746917333487,0.7278812,103700.0,103690.0,0.78270144]
[1746917334175,0.7278812,103700.0,103690.0,0.94870144]
[1746917334576,0.7298812,103700.0,103690.0,0.94870144]
[1746917335072,0.7014812,103700.0,103690.0,1.19287461]
[1746917335277,0.2410332,103710.0,103700.0,0.192835]
[1746917335483,0.2410332,103710.0,103700.0,1.01444134]
[1746917335684,0.5810332,103710.0,103700.0,1.01444134]
[1746917336076,0.5810332,103710.0,103700.0,1.276878]
[1746917336276,0.6115332,103710.0,103700.0,1.276878]
[1746917336478,0.6115332,103710.0,103700.0,1.19870483]
[1746917336775,0.2243164,103710.0,103700.0,1.19970483]
[1746917336977,0.2243164,103710.0,103700.0,1.487878]
[1746917336978,0.001,103710.0,103700.0,1.487878]
[1746917337284,0.2556143,103720.0,103710.0,0.1928164]
[1746917337481,0.5956143,103720.0,103710.0,0.8104018]
[1746917337677,0.5956143,103720.0,103710.0,0.85124195]
[1746917337881,0.5956143,103720.0,103710.0,0.94766931]
[1746917338279,0.5633143,103720.0,103710.0,1.31498931]
[1746917338484,0.1927979,103720.0,103710.0,1.31498931]
[1746917338780,0.2247979,103720.0,103710.0,1.31498931]
[1746917339584,0.2567979,103720.0,103710.0,1.31498931]
[1746917339779,0.2577979,103720.0,103710.0,1.31498931]
[1746917340181,0.2587979,103720.0,103710.0,1.31498931]
[1746917341990,0.2587979,103720.0,103710.0,1.19597599]
[1746917342190,0.2587979,103720.0,103710.0,1.31498931]
[1746917342987,0.2587979,103720.0,103710.0,0.99465599]
[1746917343291,0.5487979,103720.0,103710.0,1.39713599]
[1746917343787,0.5487979,103720.0,103710.0,1.51614931]
[1746917344193,0.5487979,103720.0,103710.0,1.35014931]
[1746917345092,0.034,103720.0,103710.0,1.51614931]
[1746917345390,0.002,103720.0,103710.0,1.81516263]
[1746917345593,0.002,103720.0,103710.0,1.84516263]
[1746917346091,0.002,103720.0,103710.0,1.72614931]
[1746917347081,0.3851707,103730.0,103710.0,1.72614931]
[1746917347287,0.7551707,103730.0,103720.0,0.73871122]
[1746917347591,0.4251707,103730.0,103720.0,0.88871122]
[1746917347892,0.4251707,103730.0,103720.0,0.98512464]
[1746917348292,0.4251707,103730.0,103720.0,0.86611132]
[1746917348686,0.4261707,103730.0,103720.0,0.86611132]
[1746917349382,0.4271707,103730.0,103720.0,0.86611132]
[1746917349789,0.4261707,103730.0,103720.0,0.86611132]
[1746917349993,0.4271707,103730.0,103720.0,0.86611132]
[1746917353692,0.7571707,103730.0,103720.0,1.06659132]
[1746917353887,0.7571707,103730.0,103720.0,0.84079342]
[1746917354093,0.9231707,103730.0,103720.0,1.00049132]
[1746917354398,0.9231707,103730.0,103720.0,1.03279132]
[1746917355698,0.9231707,103730.0,103720.0,0.67199132]
[1746917356198,0.7571707,103730.0,103720.0,0.67199132]
[1746917357808,0.87618402,103730.0,103720.0,0.24641342]
[1746917357988,1.23698402,103730.0,103720.0,0.15]
[1746917358298,1.40298402,103730.0,103720.0,0.15]
[1746917358597,1.2839707,103730.0,103720.0,0.15]
[1746917358902,0.9231707,103730.0,103720.0,0.3427979]
[1746917359093,1.40298402,103730.0,103720.0,0.3427979]
[1746917359293,1.40298402,103730.0,103720.0,0.15]
[1746917359494,1.40298402,103730.0,103720.0,0.3427979]
[1746917359808,1.36208922,103730.0,103720.0,0.15]
[1746917360193,1.2839707,103730.0,103720.0,0.15]
[1746917360496,1.36208922,103730.0,103720.0,0.15]
[1746917361902,1.40301806,103730.0,103720.0,0.15]
[1746917363802,1.2839707,103730.0,103720.0,0.15]
[1746917364003,1.40301806,103730.0,103720.0,0.15]
[1746917365404,1.40301806,103730.0,103710.0,0.50528603]
[1746917365405,0.1927979,103720.0,103710.0,0.50528603]
[1746917365605,0.74614526,103720.0,103710.0,0.56678603]
[1746917365805,0.74614526,103720.0,103710.0,1.0239948]
[1746917366105,0.2570979,103720.0,103710.0,1.0239948]
[1746917366305,0.2570979,103720.0,103710.0,1.0560948]
[1746917367107,0.2580979,103720.0,103710.0,1.0580948]
[1746917367307,0.2580979,103720.0,103710.0,1.009891]
[1746917367904,0.2580979,103720.0,103710.0,1.010891]
[1746917370108,0.2580979,103720.0,103710.0,0.650091]
[1746917370305,0.2580979,103720.0,103710.0,1.010891]
[1746917373814,0.2580979,103720.0,103710.0,1.041391]
[1746917374312,0.2900979,103720.0,103710.0,0.680591]
[1746917374517,0.2900979,103720.0,103710.0,1.041391]
[1746917380721,0.2250979,103720.0,103710.0,1.121391]
[1746917380923,0.2250979,103720.0,103710.0,1.041391]
[1746917381412,0.1937979,103720.0,103710.0,1.16043836]
[1746917381814,0.1937979,103720.0,103710.0,1.1195004]
[1746917382122,0.1937979,103720.0,103710.0,1.2855004]
[1746917383622,0.001,103720.0,103710.0,1.5255004]
[1746917383823,0.1937979,103720.0,103710.0,1.6655004]
[1746917385825,0.1937979,103720.0,103710.0,1.81050928]
[1746917389333,0.1937979,103720.0,103710.0,1.45050928]
[1746917389824,0.1937979,103720.0,103710.0,1.37239988]
[1746917390030,0.1937979,103720.0,103710.0,1.45050928]
[1746917393929,0.1937979,103720.0,103710.0,1.3055004]
[1746917393930,0.5037979,103720.0,103710.0,1.3055004]
[1746917395437,0.5037979,103720.0,103710.0,1.227391]
[1746917395637,0.5341979,103720.0,103710.0,1.3055004]
[1746917396141,0.5341979,103720.0,103710.0,1.227391]
[1746917396534,0.5341979,103720.0,103710.0,1.3055004]
[1746917396831,0.5341979,103720.0,103710.0,1.227391]
[1746917398130,0.5341979,103720.0,103710.0,1.3055004]
[1746917399636,0.5642979,103720.0,103710.0,1.3055004]
[1746917399943,0.5642979,103720.0,103710.0,1.227391]
[1746917400144,0.5642979,103720.0,103710.0,1.37239988]
[1746917400640,0.5951979,103720.0,103710.0,1.37239988]
[1746917401035,0.5951979,103720.0,103710.0,1.01159988]
[1746917401239,0.5951979,103720.0,103710.0,0.84559988]
[1746917401544,0.5961979,103720.0,103710.0,1.20339988]
[1746917402830,0.5652979,103720.0,103710.0,1.1365004]
[1746917403842,0.5652979,103720.0,103710.0,1.058391]
[1746917405353,0.5965979,103720.0,103710.0,1.058391]
[1746917406153,0.5965979,103720.0,103710.0,1.20339988]
[1746917406657,0.2865979,103720.0,103710.0,1.20339988]
[1746917407757,0.2865979,103720.0,103710.0,1.058391]
[1746917408858,0.3647073,103720.0,103710.0,0.8088272]
[1746917409053,0.3647073,103720.0,103710.0,1.0064774]
[1746917409455,0.2865979,103720.0,103710.0,1.0064774]
[1746917409845,0.2865979,103720.0,103710.0,0.6456774]
[1746917412856,0.2865979,103720.0,103710.0,1.0064774]
[1746917413159,0.2865979,103720.0,103710.0,0.6456774]
[1746917413353,0.2865979,103720.0,103710.0,1.0064774]
[1746917414664,0.3647073,103720.0,103710.0,1.0064774]
[1746917414864,0.3647073,103720.0,103710.0,0.9438774]
[1746917415957,0.2865979,103720.0,103710.0,0.9438774]
[1746917416153,0.4525979,103720.0,103710.0,0.9438774]
[1746917417268,0.2865979,103720.0,103710.0,0.9438774]
[1746917417562,0.2865979,103720.0,103710.0,0.751061]
[1746917417767,0.3647073,103720.0,103710.0,0.751061]
[1746917417969,0.3647073,103720.0,103710.0,0.719561]
[1746917418469,0.3647073,103720.0,103710.0,0.752161]
[1746917418765,0.4428167,103720.0,103710.0,0.05]
[1746917418966,0.1928164,103710.0,103700.0,0.33882435]
[1746917419270,0.8930258,103710.0,103700.0,0.34882435]
[1746917419672,0.9711352,103710.0,103700.0,0.33882435]
[1746917420466,0.8149164,103710.0,103700.0,0.33882435]
[1746917420767,0.8930258,103710.0,103700.0,0.33982435]
[1746917421064,0.8930258,103710.0,103700.0,0.33882435]
[1746917421274,0.8169164,103710.0,103700.0,0.34082435]
[1746917421562,0.8950258,103710.0,103700.0,0.54365935]
[1746917421769,0.5342258,103710.0,103700.0,0.63775935]
[1746917421969,0.4561164,103710.0,103700.0,1.09498671]
[1746917422167,0.2901164,103710.0,103700.0,0.75416236]
[1746917422869,0.3682258,103710.0,103700.0,0.75416236]
[1746917424468,0.3682258,103710.0,103700.0,0.20052736]
[1746917424670,0.7290258,103710.0,103700.0,0.20052736]
[1746917424870,0.7290258,103710.0,103700.0,0.16812736]
[1746917425271,0.7290258,103710.0,103700.0,0.01]
[1746917426172,0.192835,103700.0,103690.0,0.0637]
[1746917426470,0.3645444,103700.0,103690.0,0.18012736]
[1746917426666,0.7253444,103700.0,103690.0,0.18012736]
[1746917427266,0.7263444,103700.0,103690.0,0.18012736]
[1746917428066,0.7273444,103700.0,103690.0,0.14802736]
[1746917428767,0.7263444,103700.0,103690.0,0.14902736]
[1746917428972,0.7293444,103700.0,103690.0,0.15002736]
[1746917430273,0.9734538,103700.0,103690.0,0.022]
[1746917432773,0.9734538,103700.0,103690.0,0.002]
[1746917434276,2.0378538,103700.0,103690.0,0.002]
[1746917434769,2.2328538,103700.0,103690.0,0.002]
[1746917436679,2.2328538,103700.0,103690.0,0.034]
[1746917437175,2.0668538,103700.0,103690.0,0.034]
[1746917439377,2.0665338,103700.0,103690.0,0.0662]
[1746917441881,1.8718538,103700.0,103690.0,0.034]
[1746917442086,2.0663338,103700.0,103690.0,0.2]
[1746917442585,2.0663338,103700.0,103690.0,0.2641]
[1746917442978,1.910115,103700.0,103690.0,0.2641]
[1746917443281,2.0663338,103700.0,103690.0,0.0981]
[1746917443983,1.910115,103700.0,103690.0,0.0981]
[1746917444184,2.0663338,103700.0,103690.0,0.0981]
[1746917446702,2.0663338,103700.0,103690.0,0.034]
[1746917447482,2.0663338,103700.0,103690.0,0.002]
[1746917448282,2.0663338,103700.0,103690.0,0.033]
[1746917453293,1.8718538,103700.0,103690.0,0.033]
[1746917453594,2.0655338,103700.0,103690.0,0.033]
[1746917453783,2.0655338,103700.0,103690.0,0.0967]